bitfinex/quotes_BTCUSD_20250623
["timestamp","ask_amount","ask_price","bid_price","bid_amount"]
[1750721096083,0.00615468,105520.0,105510.0,0.61100621]
[1750721096752,0.00415468,105520.0,105510.0,0.61100621]
[1750721096998,0.00315468,105520.0,105510.0,0.61186772]
[1750721097213,0.00415468,105520.0,105510.0,0.61786772]
[1750721099808,0.00415468,105520.0,105510.0,0.59416772]
[1750721100257,0.00415468,105520.0,105510.0,0.56573549]
[1750721100465,0.68963824,105520.0,105510.0,0.35188]
[1750721100933,0.36755468,105520.0,105510.0,0.36135768]
[1750721101155,0.68963824,105520.0,105510.0,0.05568]
[1750721101581,1.02337061,105520.0,105510.0,0.007]
[1750721101816,1.36885417,105520.0,105510.0,0.007]
[1750721102044,1.55460888,105520.0,105510.0,0.007]
[1750721102285,1.55460877,105520.0,105510.0,0.007]
[1750721102730,1.52636358,105520.0,105510.0,0.007]
[1750721102950,1.52636358,105520.0,105510.0,0.006]
[1750721102951,1.54090443,105520.0,105510.0,0.006]
[1750721103179,0.05065468,105500.0,105490.0,0.04848]
[1750721103413,0.3642,105490.0,105470.0,0.60093542]
[1750721103655,0.80518542,105490.0,105470.0,0.60093542]
[1750721103914,0.68863824,105480.0,105470.0,0.324905]
[1750721104131,0.68863824,105480.0,105470.0,0.35436136]
[1750721104357,0.34315468,105480.0,105470.0,0.34488]
[1750721104642,0.34315468,105480.0,105470.0,0.35436127]
[1750721104838,0.34315468,105480.0,105470.0,0.36684245]
[1750721105079,0.34315468,105480.0,105470.0,0.56295092]
[1750721105286,0.46285654,105480.0,105470.0,0.04914195]
[1750721105528,0.44815316,105480.0,105470.0,0.05862331]
[1750721105752,0.44815316,105480.0,105470.0,0.26721278]
[1750721106020,0.44815316,105480.0,105470.0,0.25873196]
[1750721106242,0.3526513,105480.0,105470.0,0.26821305]
[1750721106464,0.3536513,105480.0,105470.0,0.25325051]
[1750721106925,0.3536513,105480.0,105470.0,0.26673178]
[1750721107144,0.3536513,105480.0,105470.0,0.2572506]
[1750721107395,0.3536513,105480.0,105470.0,0.2667316]
[1750721107608,0.3536513,105480.0,105470.0,0.2572506]
[1750721107818,0.3536513,105480.0,105470.0,0.2667316]
[1750721108248,0.3536513,105480.0,105470.0,0.27621242]
[1750721108474,0.3536513,105480.0,105470.0,0.2667316]
[1750721108690,0.3536513,105480.0,105470.0,0.27621233]
[1750721108901,0.34415468,105480.0,105470.0,0.2667316]
[1750721109117,0.34415468,105480.0,105470.0,0.28569333]
[1750721109560,0.34415468,105480.0,105470.0,0.29269406]
[1750721110010,0.34415468,105480.0,105470.0,0.58889406]
[1750721110440,0.34415468,105480.0,105470.0,0.61159406]
[1750721115044,0.34415468,105480.0,105470.0,0.63359406]
[1750721115259,0.34415468,105480.0,105470.0,0.61159406]
[1750721116343,0.34415468,105480.0,105470.0,0.58889406]
[1750721116753,0.34415468,105480.0,105470.0,0.5509706]
[1750721116962,0.34415468,105480.0,105470.0,0.56993233]
[1750721117837,0.34415468,105480.0,105470.0,0.59323233]
[1750721118050,0.00415468,105480.0,105470.0,1.04828102]
[1750721118254,0.001,105480.0,105470.0,1.21700102]
[1750721118956,0.001,105480.0,105470.0,1.31250288]
[1750721121592,0.001,105480.0,105470.0,0.88055419]
[1750721121826,0.001,105480.0,105470.0,1.31250288]
[1750721122687,0.001,105480.0,105470.0,1.32704373]
[1750721125433,0.34315468,105510.0,105490.0,0.22137037]
[1750721125643,0.34315468,105510.0,105500.0,0.43512838]
[1750721125855,0.35241093,105510.0,105500.0,0.73032838]
[1750721126065,0.35241093,105510.0,105500.0,0.73032856]
[1750721126331,0.37531093,105510.0,105500.0,0.72085034]
[1750721126559,0.74391745,105510.0,105500.0,0.70185345]
[1750721126766,0.74691745,105510.0,105500.0,0.53325345]
[1750721127178,0.74791745,105510.0,105500.0,0.34468]
[1750721127618,0.74791745,105510.0,105500.0,0.53425345]
[1750721127838,0.84341931,105510.0,105500.0,0.2962]
[1750721128047,0.84341931,105510.0,105500.0,0.48577345]
[1750721128269,0.84341931,105510.0,105500.0,0.49425212]
[1750721128497,0.40261093,105510.0,105500.0,0.51320919]
[1750721128726,0.40561093,105510.0,105500.0,0.51320919]
[1750721128941,0.40561093,105510.0,105500.0,0.48477345]
[1750721129155,0.40261093,105510.0,105500.0,0.48477345]
[1750721129370,0.40261093,105510.0,105500.0,0.49425212]
[1750721129594,0.40261093,105510.0,105500.0,0.5047307]
[1750721129813,0.39861093,105510.0,105500.0,0.48477345]
[1750721130671,0.39861093,105510.0,105500.0,0.2952]
[1750721130672,0.74391745,105510.0,105500.0,0.2952]
[1750721131084,0.74491745,105510.0,105500.0,0.2962]
[1750721131557,0.74391745,105510.0,105500.0,0.2952]
[1750721131779,0.74491745,105510.0,105500.0,0.2972]
[1750721132414,1.18572583,105510.0,105500.0,0.003]
[1750721133311,1.20838712,105510.0,105500.0,0.003]
[1750721135023,0.8630806,105510.0,105500.0,0.003]
[1750721136100,1.20838712,105510.0,105500.0,0.003]
[1750721138552,1.21502893,105510.0,105500.0,0.003]
[1750721138773,1.32503973,105510.0,105500.0,0.003]
[1750721139004,1.32503973,105510.0,105470.0,0.42014085]
[1750721139005,0.00315468,105480.0,105470.0,0.04828]
[1750721139226,0.99800306,105480.0,105470.0,0.04828]
[1750721139900,0.36525468,105470.0,105460.0,0.2964]
[1750721140130,0.7340612,105470.0,105460.0,0.2964]
[1750721140355,0.82956306,105470.0,105460.0,0.2964]
[1750721141661,0.83056306,105470.0,105460.0,0.2984]
[1750721142103,0.82956306,105470.0,105460.0,0.48604536]
[1750721142380,0.83056306,105470.0,105460.0,0.48704536]
[1750721142605,0.83056306,105470.0,105460.0,0.19084536]
[1750721142823,0.83156306,105470.0,105460.0,0.19084536]
[1750721143375,0.83156306,105470.0,105460.0,0.0012]
[1750721146673,0.48625654,105470.0,105460.0,0.0012]
[1750721146886,0.83156306,105470.0,105460.0,0.0012]
[1750721148419,0.00515468,105470.0,105460.0,0.21929106]
[1750721148639,0.00515468,105470.0,105460.0,0.21929115]
[1750721148847,0.00515468,105470.0,105460.0,0.22877278]
[1750721149278,0.34515468,105470.0,105460.0,0.6181793]
[1750721150567,0.34415468,105470.0,105460.0,0.6181793]
[1750721150783,0.00415468,105470.0,105460.0,0.6181793]
[1750721151277,0.00315468,105480.0,105470.0,0.26267038]
[1750721151480,0.00315468,105480.0,105470.0,0.6069769]
[1750721151691,0.00315468,105480.0,105470.0,0.5845769]
[1750721151902,0.00315468,105480.0,105470.0,0.7528969]
[1750721152120,0.00315468,105480.0,105470.0,1.06201527]
[1750721152555,0.00415468,105480.0,105470.0,1.06701527]
[1750721152990,0.001,105480.0,105470.0,1.06901527]
[1750721153234,0.001,105480.0,105470.0,1.17905798]
[1750721153453,0.001,105480.0,105470.0,1.17705798]
[1750721153700,0.001,105480.0,105470.0,1.5253645]
[1750721153922,0.001,105480.0,105470.0,1.18005798]
[1750721154353,0.00315468,105500.0,105490.0,0.26262906]
[1750721154571,0.00329305,105500.0,105490.0,0.82345558]
[1750721155234,0.00329305,105500.0,105490.0,0.43354906]
[1750721155441,0.00329305,105500.0,105490.0,0.43254906]
[1750721155865,0.00329305,105500.0,105490.0,0.43054906]
[1750721156074,0.00329305,105500.0,105490.0,0.43454915]
[1750721156260,0.00329305,105500.0,105490.0,0.44702809]
[1750721157472,0.00429305,105500.0,105490.0,0.45602809]
[1750721157889,0.00429305,105500.0,105490.0,0.50002809]
[1750721158836,0.00429305,105500.0,105490.0,0.52838427]
[1750721160726,0.00429305,105500.0,105490.0,0.96006683]
[1750721161680,0.00113837,105500.0,105490.0,1.05556869]
[1750721161907,0.00113837,105500.0,105490.0,0.62388613]
[1750721163714,0.00113837,105500.0,105490.0,1.05556869]
[1750721164943,0.00113837,105500.0,105490.0,0.18665404]
[1750721165163,0.00429305,105500.0,105490.0,0.50300124]
[1750721165823,0.00429305,105500.0,105490.0,0.50296124]
[1750721168251,0.00429305,105500.0,105490.0,0.26792309]
[1750721168473,0.00429305,105500.0,105490.0,0.47438524]
[1750721168693,0.02619305,105500.0,105490.0,0.45542709]
[1750721168920,0.02619305,105500.0,105490.0,0.47438578]
[1750721169207,0.02619305,105500.0,105490.0,0.48386499]
[1750721169844,0.02619305,105500.0,105490.0,0.49334411]
[1750721170057,0.02619305,105500.0,105490.0,0.47438578]
[1750721170327,0.02619305,105500.0,105490.0,0.4838649]
[1750721170605,0.02619305,105500.0,105490.0,0.47438578]
[1750721170829,0.04829305,105500.0,105490.0,0.28742718]
[1750721171039,0.04829305,105500.0,105490.0,0.29690666]
[1750721171240,0.04829305,105500.0,105490.0,0.30638605]
[1750721171792,0.04829305,105500.0,105490.0,0.28742718]
[1750721172010,0.04829305,105500.0,105490.0,0.29690666]
[1750721172211,0.04829305,105500.0,105490.0,0.28750917]
[1750721172609,0.04829305,105500.0,105490.0,0.27802987]
[1750721172814,0.04829305,105500.0,105490.0,0.28750917]
[1750721173246,0.04829305,105500.0,105490.0,0.29698838]
[1750721173454,0.04829305,105500.0,105490.0,0.27802987]
[1750721173890,0.04829305,105500.0,105490.0,0.27802969]
[1750721174120,0.04829305,105500.0,105490.0,0.28750863]
[1750721174365,0.02619305,105500.0,105490.0,0.28750881]
[1750721174569,0.02619305,105500.0,105490.0,0.29698775]
[1750721175470,0.02619305,105500.0,105490.0,0.26855048]
[1750721175747,0.02619305,105500.0,105490.0,0.27802978]
[1750721175993,0.02619305,105500.0,105490.0,0.2969873]
[1750721176268,0.00429305,105500.0,105490.0,0.2969873]
[1750721177335,0.00429305,105500.0,105490.0,0.27554933]
[1750721177546,0.00429305,105500.0,105490.0,0.28502827]
[1750721177764,0.02669305,105500.0,105490.0,0.27554942]
[1750721178007,0.02669305,105500.0,105490.0,0.28502836]
[1750721178234,0.02669305,105500.0,105490.0,0.27554942]
[1750721178447,0.02669305,105500.0,105490.0,0.28502854]
[1750721178658,0.02669305,105500.0,105490.0,0.26607021]
[1750721178876,0.04789305,105500.0,105490.0,0.256591]
[1750721179088,0.04789305,105500.0,105490.0,0.26607048]
[1750721179304,0.04789305,105500.0,105490.0,0.27554978]
[1750721179523,0.04789305,105500.0,105490.0,0.27554987]
[1750721180439,0.7332498,105500.0,105490.0,0.24711143]
[1750721181103,0.7332498,105500.0,105490.0,0.19911143]
[1750721182861,0.7332498,105500.0,105490.0,0.208591]
[1750721183334,0.38789305,105500.0,105490.0,0.22754969]
[1750721183565,0.38789305,105500.0,105490.0,0.2370289]
[1750721183794,0.38789305,105500.0,105490.0,0.208591]
[1750721184019,0.38789305,105500.0,105490.0,0.21807048]
[1750721184923,0.38789305,105500.0,105490.0,0.23702917]
[1750721185374,0.38789305,105500.0,105490.0,0.22754987]
[1750721185820,0.38789305,105500.0,105490.0,0.23702908]
[1750721186032,0.38789305,105500.0,105490.0,0.21807048]
[1750721186247,0.38789305,105500.0,105490.0,0.23702917]
[1750721186459,0.38789305,105500.0,105490.0,0.22754987]
[1750721186904,0.82875166,105500.0,105490.0,0.00952]
[1750721187129,0.99647166,105500.0,105490.0,0.00952]
[1750721187353,1.01921412,105500.0,105490.0,0.00952]
[1750721188029,1.02587688,105500.0,105490.0,0.00952]
[1750721188266,1.02587688,105500.0,105490.0,0.009]
[1750721188455,1.0551985,105500.0,105490.0,0.009]
[1750721188703,1.06973935,105500.0,105490.0,0.009]
[1750721188930,1.06873935,105500.0,105490.0,0.009]
[1750721189158,0.04585468,105470.0,105460.0,0.05768226]
[1750721189380,0.38585468,105470.0,105460.0,0.0482]
[1750721189607,0.73121143,105470.0,105460.0,0.05768226]
[1750721190050,0.73121143,105470.0,105460.0,0.25680979]
[1750721190269,0.39529152,105470.0,105460.0,0.25680979]
[1750721190473,0.39629152,105470.0,105460.0,0.26380979]
[1750721190905,0.49179338,105470.0,105460.0,0.0552]
[1750721192061,0.83715013,105470.0,105460.0,0.0072]
[1750721192622,0.83815013,105470.0,105460.0,0.0102]
[1750721194090,0.63893338,105470.0,105460.0,0.0102]
[1750721194500,0.63893338,105470.0,105460.0,0.19984536]
[1750721194739,0.63893338,105470.0,105460.0,0.20932753]
[1750721194950,0.34515468,105470.0,105460.0,0.5831298]
[1750721195120,0.34515468,105470.0,105460.0,0.6049298]
[1750721195780,0.34515468,105470.0,105460.0,0.9011298]
[1750721196009,0.002,105470.0,105460.0,1.09319251]
[1750721196415,0.002,105470.0,105460.0,0.74783576]
[1750721196555,0.00515468,105470.0,105460.0,0.55577305]
[1750721196981,0.00515468,105470.0,105460.0,0.57547305]
[1750721197610,0.00515468,105470.0,105460.0,0.55577305]
[1750721198662,0.002,105470.0,105460.0,0.67177491]
[1750721198879,0.002,105470.0,105460.0,0.55577305]
[1750721199527,0.00515468,105470.0,105460.0,0.57221106]
[1750721199999,0.00515468,105470.0,105460.0,0.52449106]
[1750721200184,0.00515468,105470.0,105460.0,0.57221106]
[1750721201071,0.002,105470.0,105460.0,0.71031292]
[1750721202396,0.00515468,105470.0,105460.0,0.59431106]
[1750721202847,0.00515468,105470.0,105460.0,0.57221124]
[1750721203063,0.00515468,105470.0,105460.0,0.58169287]
[1750721204139,0.00515468,105470.0,105460.0,0.57221124]
[1750721204640,0.02595468,105470.0,105460.0,0.56272961]
[1750721204894,0.02595468,105470.0,105460.0,0.55324753]
[1750721205151,0.36595468,105470.0,105460.0,0.3064]
[1750721205368,0.38685468,105470.0,105460.0,0.35412]
[1750721207114,0.48235654,105470.0,105460.0,0.35412]
[1750721207339,0.91418909,105470.0,105460.0,0.35412]
[1750721207559,0.91418909,105470.0,105460.0,0.05792]
[1750721207994,0.48235654,105470.0,105460.0,0.05792]
[1750721208672,0.64979654,105470.0,105460.0,0.05792]
[1750721210651,0.62889654,105470.0,105460.0,0.06740226]
[1750721211081,0.00515468,105470.0,105460.0,0.25704762]
[1750721211278,0.00515468,105470.0,105460.0,0.28549296]
[1750721212558,0.00515468,105470.0,105460.0,0.30479296]
[1750721213329,0.00515468,105470.0,105460.0,0.30483296]
[1750721214299,0.00515468,105470.0,105460.0,0.29435142]
[1750721214768,0.00515468,105470.0,105460.0,0.30383314]
[1750721214979,0.00515468,105470.0,105460.0,0.31331477]
[1750721216309,0.002,105470.0,105460.0,0.31331477]
[1750721216551,0.002,105470.0,105460.0,0.62901477]
[1750721218469,0.002,105470.0,105460.0,0.97450784]
[1750721219050,0.002,105470.0,105460.0,1.0700097]
[1750721219899,0.002,105470.0,105460.0,1.0793148]
[1750721220844,0.001,105470.0,105460.0,1.0731148]
[1750721221069,0.56598509,105500.0,105490.0,0.2085503]
[1750721221291,0.68737006,105500.0,105490.0,0.2075503]
[1750721221500,0.56913977,105500.0,105490.0,0.21702951]
[1750721221709,0.03171124,105500.0,105490.0,0.23598757]
[1750721221941,0.03171124,105500.0,105490.0,0.66904064]
[1750721222153,0.03171124,105500.0,105490.0,0.64954064]
[1750721222406,0.03171124,105500.0,105490.0,0.28274757]
[1750721222620,0.00315468,105490.0,105480.0,0.372138]
[1750721222822,0.38674775,105490.0,105480.0,0.55221007]
[1750721223254,0.38674775,105490.0,105480.0,0.56169018]
[1750721223463,0.38674775,105490.0,105480.0,0.5711702]
[1750721223714,0.00315468,105490.0,105480.0,0.58065004]
[1750721224148,0.00415468,105490.0,105480.0,0.58065004]
[1750721224803,0.00415468,105490.0,105480.0,0.60325004]
[1750721225009,0.00415468,105490.0,105480.0,0.58265004]
[1750721225434,0.00315468,105490.0,105480.0,0.58265004]
[1750721225649,0.00315468,105490.0,105480.0,0.58065004]
[1750721225868,0.00415468,105490.0,105480.0,0.58665004]
[1750721226386,0.00415468,105490.0,105480.0,0.59065004]
[1750721226603,0.00515468,105490.0,105480.0,0.59065004]
[1750721229833,0.002,105490.0,105480.0,0.60965004]
[1750721230506,0.002,105490.0,105480.0,0.7232519]
[1750721230941,0.002,105490.0,105480.0,0.73254269]
[1750721231374,0.002,105490.0,105480.0,0.7232519]
[1750721234861,0.002,105490.0,105480.0,0.7051519]
[1750721235082,0.002,105490.0,105480.0,0.7145942]
[1750721235294,0.002,105490.0,105480.0,0.7325942]
[1750721237012,0.002,105490.0,105480.0,0.7145942]
[1750721237252,0.002,105490.0,105480.0,0.7051519]
[1750721237685,0.002,105490.0,105480.0,0.7226519]
[1750721238566,0.002,105490.0,105480.0,0.73198929]
[1750721239028,0.002,105490.0,105480.0,1.17829019]
[1750721239251,0.002,105490.0,105480.0,1.65689556]
[1750721239712,0.002,105490.0,105480.0,1.99689556]
[1750721239959,0.12314515,105520.0,105510.0,0.70108862]
[1750721240211,0.12360672,105520.0,105510.0,1.27655392]
[1750721240689,0.12360672,105520.0,105510.0,1.30504092]
[1750721241621,0.12360672,105520.0,105510.0,1.03939748]
[1750721242505,0.12360672,105520.0,105510.0,1.04839748]
[1750721243145,0.12360672,105520.0,105510.0,1.54176092]
[1750721243366,0.00046157,105520.0,105510.0,1.58860624]
[1750721243591,0.00046157,105520.0,105510.0,1.92860624]
[1750721243811,0.00046157,105520.0,105510.0,2.36036629]
[1750721244941,0.00046157,105520.0,105510.0,1.92860624]
[1750721245170,0.00046157,105520.0,105510.0,1.92460624]
[1750721245398,0.37867625,105570.0,105560.0,0.20841181]
[1750721245614,0.37867625,105570.0,105560.0,0.21788482]
[1750721245831,0.37880755,105570.0,105560.0,0.22735756]
[1750721246011,0.37880755,105570.0,105560.0,0.21788482]
[1750721246240,0.37880755,105570.0,105560.0,0.22735756]
[1750721246454,0.37880755,105570.0,105560.0,0.20841199]
[1750721246692,0.37880755,105570.0,105560.0,0.2084119]
[1750721246905,0.37880755,105570.0,105560.0,0.23135765]
[1750721247114,0.37880755,105570.0,105560.0,0.21241199]
[1750721247327,0.37880755,105570.0,105560.0,0.22188491]
[1750721247545,0.37880755,105570.0,105560.0,0.21241199]
[1750721247763,0.37880755,105570.0,105560.0,0.23135774]
[1750721247969,0.37880755,105570.0,105560.0,0.23235774]
[1750721248604,0.36000755,105570.0,105560.0,0.24183039]
[1750721249055,0.36000755,105570.0,105560.0,0.50747383]
[1750721249294,0.35685287,105570.0,105560.0,0.50747383]
[1750721249520,0.36000755,105570.0,105560.0,0.24183039]
[1750721249737,0.36000755,105570.0,105560.0,0.33733225]
[1750721249738,0.0001313,105570.0,105560.0,0.33733225]
[1750721250178,0.0181313,105570.0,105560.0,0.33733225]
[1750721250620,0.0001313,105570.0,105560.0,0.33733225]
[1750721251041,0.0001313,105570.0,105560.0,0.3518731]
[1750721251510,0.46759135,105570.0,105560.0,0.47905525]
[1750721251729,0.03898598,105570.0,105560.0,0.48852799]
[1750721251941,0.03898598,105570.0,105560.0,0.48852808]
[1750721252389,0.03898598,105570.0,105560.0,0.66460073]
[1750721252615,0.03898598,105570.0,105560.0,0.65512808]
[1750721253052,0.03898598,105570.0,105560.0,0.66460073]
[1750721253269,0.0175313,105570.0,105560.0,0.66460073]
[1750721254812,0.0175313,105570.0,105560.0,0.38001181]
[1750721255035,0.0356313,105570.0,105560.0,0.38948446]
[1750721255262,0.3756313,105570.0,105560.0,0.005]
[1750721255482,0.90604789,105570.0,105560.0,0.005]
[1750721255704,1.09511187,105570.0,105560.0,0.005]
[1750721257032,1.09511187,105570.0,105560.0,0.004]
[1750721257467,1.09611187,105570.0,105560.0,0.004]
[1750721257885,1.11372626,105570.0,105560.0,0.004]
[1750721258098,0.0155,105560.0,105540.0,0.05659499]
[1750721258361,0.3739,105550.0,105540.0,0.05659499]
[1750721258577,0.37705468,105550.0,105540.0,0.26504595]
[1750721258787,0.37705468,105550.0,105540.0,0.2745204]
[1750721258788,0.35865468,105550.0,105540.0,0.2745204]
[1750721260134,0.35865468,105550.0,105540.0,0.26504613]
[1750721260344,0.35865468,105550.0,105540.0,0.25557132]
[1750721260565,0.35865468,105550.0,105540.0,0.26604577]
[1750721260786,0.35865468,105550.0,105540.0,0.52521485]
[1750721261004,0.37675468,105550.0,105540.0,0.52421485]
[1750721261218,0.35865468,105550.0,105540.0,0.54316384]
[1750721261435,0.35865468,105550.0,105540.0,0.54616384]
[1750721262106,0.3552,105560.0,105550.0,0.20843138]
[1750721262325,0.3809405,105560.0,105550.0,0.20843147]
[1750721262559,0.3809405,105560.0,105550.0,0.48932061]
[1750721262560,0.37778582,105560.0,105550.0,0.48932061]
[1750721262775,0.3552,105560.0,105550.0,0.47984706]
[1750721262986,0.3552,105560.0,105550.0,0.4893207]
[1750721263201,0.37645468,105560.0,105550.0,0.37487156]
[1750721263413,0.39905771,105560.0,105550.0,0.37487156]
[1750721263634,0.39905771,105560.0,105550.0,0.39481911]
[1750721263847,0.39905771,105560.0,105550.0,0.38534538]
[1750721264049,0.39905771,105560.0,105550.0,0.37587156]
[1750721264275,0.39905771,105560.0,105550.0,0.37687156]
[1750721264945,0.39905771,105560.0,105550.0,0.39581893]
[1750721265167,0.38095771,105560.0,105550.0,0.39581893]
[1750721265581,0.38095771,105560.0,105550.0,0.37687156]
[1750721266292,0.398642,105560.0,105550.0,0.38634529]
[1750721266474,0.398642,105560.0,105550.0,0.39581893]
[1750721266618,0.398642,105560.0,105550.0,0.66146237]
[1750721267692,0.398642,105560.0,105550.0,0.63304109]
[1750721267842,0.416942,105560.0,105550.0,0.642515]
[1750721268277,0.416942,105560.0,105550.0,0.65198882]
[1750721268719,0.416942,105560.0,105550.0,0.66146255]
[1750721268927,0.43245351,105560.0,105550.0,0.67093574]
[1750721269147,0.38033042,105560.0,105550.0,0.67093574]
[1750721269597,0.38033042,105560.0,105550.0,0.68833574]
[1750721270018,0.0001313,105570.0,105560.0,0.21788446]
[1750721270228,0.02597544,105570.0,105560.0,0.21788446]
[1750721270448,0.40796298,105570.0,105560.0,0.21788446]
[1750721270884,0.3894083,105570.0,105560.0,0.21788446]
[1750721271102,0.3894083,105570.0,105560.0,0.31338632]
[1750721271327,0.38154599,105570.0,105560.0,0.33078632]
[1750721271529,0.39040956,105570.0,105560.0,0.33078632]
[1750721271746,0.39040956,105570.0,105560.0,0.31338632]
[1750721272189,0.39040956,105570.0,105560.0,0.57902976]
[1750721272400,0.3677201,105570.0,105560.0,0.57902976]
[1750721272616,0.35885653,105570.0,105560.0,0.57902976]
[1750721272830,0.36971992,105570.0,105560.0,0.57902976]
[1750721273329,0.02085653,105570.0,105560.0,0.57902976]
[1750721273766,0.0031313,105570.0,105560.0,0.57902976]
[1750721274198,0.0011313,105570.0,105560.0,0.59462976]
[1750721274414,0.0001313,105570.0,105560.0,0.59562976]
[1750721275063,0.0001313,105570.0,105560.0,0.61017061]
[1750721275708,0.0001313,105570.0,105560.0,0.59457061]
[1750721276146,0.0001313,105570.0,105560.0,0.59757061]
[1750721276360,0.0001313,105570.0,105560.0,0.61287061]
[1750721276582,0.0001313,105570.0,105560.0,0.61587061]
[1750721278171,0.0001313,105570.0,105560.0,0.59957061]
[1750721281289,0.0155313,105570.0,105560.0,0.58502976]
[1750721281498,0.0155313,105570.0,105560.0,0.79822976]
[1750721281749,0.0001313,105570.0,105560.0,0.81442976]
[1750721281954,0.0001313,105570.0,105560.0,0.82897061]
[1750721282169,0.0001313,105570.0,105560.0,1.26073066]
[1750721284213,0.0001313,105570.0,105560.0,0.82897061]
[1750721284440,0.0001313,105570.0,105560.0,1.17375315]
[1750721286407,0.0001313,105570.0,105560.0,1.15755315]
[1750721287930,0.0158313,105570.0,105560.0,1.15755315]
[1750721288145,0.0158313,105570.0,105560.0,0.79822976]
[1750721288351,0.0313313,105570.0,105560.0,0.79822976]
[1750721288780,0.0158313,105570.0,105560.0,1.1430123]
[1750721290150,0.0001313,105570.0,105560.0,1.1430123]
[1750721290805,0.0152313,105570.0,105560.0,1.1430123]
[1750721291253,0.0310313,105570.0,105560.0,0.7027279]
[1750721291479,0.0310313,105570.0,105560.0,0.7023279]
[1750721291480,0.03418598,105570.0,105560.0,0.7023279]
[1750721291687,0.0310313,105570.0,105560.0,1.1426123]
[1750721291900,7.629e-05,105570.0,105560.0,1.1426123]
[1750721293231,0.01647629,105570.0,105560.0,1.1426123]
[1750721293884,0.03147629,105570.0,105560.0,1.1426123]
[1750721294720,0.01647629,105570.0,105560.0,1.1426123]
[1750721294942,7.629e-05,105570.0,105560.0,1.1426123]
[1750721295385,0.01537629,105570.0,105560.0,1.1426123]
[1750721297419,7.629e-05,105570.0,105560.0,1.1426123]
[1750721297647,0.01607629,105570.0,105560.0,0.79782976]
[1750721297884,0.03433097,105570.0,105560.0,0.53636808]
[1750721298123,0.37911351,105570.0,105560.0,0.27164344]
[1750721298366,0.71911351,105570.0,105560.0,0.31848344]
[1750721298597,0.37433097,105570.0,105560.0,0.31848344]
[1750721299305,0.37433097,105570.0,105560.0,0.31548344]
[1750721299532,0.37533097,105570.0,105560.0,0.32495672]
[1750721299988,0.37533097,105570.0,105560.0,0.31248344]
[1750721300265,0.37733097,105570.0,105560.0,0.32195672]
[1750721300504,0.37733097,105570.0,105560.0,0.52089552]
[1750721300741,0.37733097,105570.0,105560.0,0.52089561]
[1750721300960,0.37733097,105570.0,105560.0,0.51142242]
[1750721301184,0.37733097,105570.0,105560.0,0.31248344]
[1750721301648,0.37733097,105570.0,105560.0,0.32195672]
[1750721302117,0.37733097,105570.0,105560.0,0.06578647]
[1750721302343,0.37733097,105570.0,105560.0,0.26472518]
[1750721302982,0.37733097,105570.0,105560.0,0.2741981]
[1750721303202,0.37733097,105570.0,105560.0,0.28367075]
[1750721303420,0.37733097,105570.0,105560.0,0.62845329]
[1750721303853,0.37733097,105570.0,105560.0,0.28367075]
[1750721304110,0.37433097,105570.0,105560.0,0.28367075]
[1750721304299,0.37433097,105570.0,105560.0,0.28467075]
[1750721304762,0.37433097,105570.0,105560.0,0.62945329]
[1750721304977,0.01607629,105570.0,105560.0,0.62945329]
[1750721305181,0.01923097,105570.0,105560.0,0.62945329]
[1750721305623,0.01923097,105570.0,105560.0,0.63045329]
[1750721305832,7.629e-05,105570.0,105560.0,0.63045329]
[1750721306040,7.629e-05,105570.0,105560.0,0.64575329]
[1750721306258,7.629e-05,105570.0,105560.0,0.74125515]
[1750721307982,7.629e-05,105570.0,105560.0,0.72595515]
[1750721308218,7.629e-05,105570.0,105560.0,1.02215515]
[1750721308460,0.01587629,105570.0,105560.0,1.02215515]
[1750721310622,7.629e-05,105570.0,105560.0,1.02215515]
[1750721310828,7.629e-05,105570.0,105560.0,1.05475515]
[1750721311315,7.629e-05,105570.0,105560.0,1.069296]
[1750721313365,0.99721629,105580.0,105570.0,0.21786381]
[1750721313585,0.99721629,105580.0,105570.0,0.82382821]
[1750721314022,0.99721629,105580.0,105570.0,1.12002821]
[1750721314482,0.99721629,105580.0,105570.0,1.15112821]
[1750721314945,0.99921629,105580.0,105570.0,1.13542821]
[1750721315895,0.99921629,105580.0,105570.0,1.14481104]
[1750721316129,1.00021629,105580.0,105570.0,1.51943443]
[1750721316351,0.99821629,105580.0,105570.0,1.51943443]
[1750721316572,0.99721629,105580.0,105570.0,1.93509528]
[1750721316787,0.99721629,105580.0,105570.0,1.9879406]
[1750721317227,0.99721629,105580.0,105570.0,2.38272314]
[1750721317446,0.99721629,105580.0,105570.0,2.0319406]
[1750721317657,0.99721629,105580.0,105570.0,2.05968482]
[1750721317872,0.70101629,105580.0,105570.0,2.25858482]
[1750721318102,0.70201629,105580.0,105570.0,2.26758482]
[1750721318312,0.70301629,105580.0,105570.0,2.27458482]
[1750721318530,0.70301629,105580.0,105570.0,2.22458482]
[1750721319826,0.70301629,105580.0,105570.0,2.27458482]
[1750721320476,0.6865727,105580.0,105570.0,2.61936736]
[1750721320735,0.68335756,105580.0,105570.0,2.61936736]
[1750721321592,0.68335756,105580.0,105570.0,2.19892397]
[1750721323325,0.49052862,105580.0,105570.0,2.19892397]
[1750721324792,0.49052862,105580.0,105570.0,2.14892397]
[1750721324974,0.49052862,105580.0,105570.0,2.19892397]
[1750721325795,0.19432862,105580.0,105570.0,2.19892397]
[1750721326216,0.19432862,105580.0,105570.0,2.54370651]
[1750721326875,0.19432862,105580.0,105570.0,2.57217051]
[1750721327125,0.19432862,105580.0,105570.0,1.53782289]
[1750721327372,0.19432862,105580.0,105570.0,2.17738797]
[1750721327810,0.19432862,105580.0,105570.0,1.9503218]
[1750721328027,0.19432862,105580.0,105570.0,2.25912712]
[1750721328245,0.19432862,105580.0,105570.0,2.27366797]
[1750721328723,0.19432862,105580.0,105570.0,2.17682265]
[1750721328959,0.20992862,105580.0,105570.0,1.5796218]
[1750721329172,0.22522862,105580.0,105570.0,1.43741643]
[1750721329362,0.20992862,105580.0,105570.0,2.12219897]
[1750721329822,0.20792862,105580.0,105570.0,2.12073982]
[1750721330028,0.20792862,105580.0,105570.0,2.10619897]
[1750721330229,0.20792862,105580.0,105570.0,2.12973982]
[1750721330438,0.20792862,105580.0,105570.0,1.87102308]
[1750721331814,0.20792862,105580.0,105570.0,1.67212308]
[1750721334945,0.19232862,105580.0,105570.0,1.67212308]
[1750721335291,0.19232862,105580.0,105570.0,1.68852308]
[1750721337548,0.19232862,105580.0,105570.0,1.70442308]
[1750721338006,0.19232862,105580.0,105570.0,1.7512684]
[1750721339661,0.19232862,105580.0,105570.0,2.2463684]
[1750721340075,0.19232862,105580.0,105570.0,2.2963684]
[1750721341388,0.19232862,105580.0,105570.0,2.2463684]
[1750721341603,0.19232862,105580.0,105570.0,2.2963684]
[1750721342732,0.19232862,105580.0,105570.0,2.24952308]
[1750721342941,0.19232862,105580.0,105570.0,2.0685084]
[1750721343163,0.19232862,105580.0,105570.0,2.2803084]
[1750721343377,0.19232862,105580.0,105570.0,2.2953084]